[Event "Titled Tuesday Blitz April 18 Early 2023"]
[White "Ashraf, Artin"]
[Black "O`Gorman, Tom"]
[WhiteFideId "22514805"]
[BlackFideId "2508249"]
[WhiteElo "2188"]
[BlackElo "2271"]
[Result "0-1"]
[Round "08"]
[TimeControl "180+2"]
[Date "2023.04.18"]
[WhiteClock "0:00:02"]
[BlackClock "0:00:20"]

1. d4 {[%clk 0:03:00]}  Nf6 {[%clk 0:02:59]} 2. Nc3 {[%clk 0:03:00]}  d5 {[%clk 0:02:58]} 3. Bf4 {[%clk 0:03:00]}  c5 {[%clk 0:02:57]} 4. e3 {[%clk 0:02:46]}  cxd4 {[%clk 0:02:56]} 5. exd4 {[%clk 0:02:45]}  a6 {[%clk 0:02:54]} 6. Bd3 {[%clk 0:02:45]}  Nc6 {[%clk 0:02:54]} 7. Nce2 {[%clk 0:02:44]}  Bg4 {[%clk 0:02:52]} 8. c3 {[%clk 0:02:38]}  e6 {[%clk 0:02:52]} 9. f3 {[%clk 0:02:33]}  Bh5 {[%clk 0:02:51]} 10. Ng3 {[%clk 0:02:32]}  Bg6 {[%clk 0:02:52]} 11. N1e2 {[%clk 0:02:31]}  Bd6 {[%clk 0:02:51]} 12. O-O {[%clk 0:02:30]}  Rc8 {[%clk 0:02:48]} 13. Qd2 {[%clk 0:02:27]}  O-O {[%clk 0:02:43]} 14. Bg5 {[%clk 0:02:24]}  Bxd3 {[%clk 0:02:39]} 15. Qxd3 {[%clk 0:02:23]}  h6 {[%clk 0:02:39]} 16. Be3 {[%clk 0:02:19]}  Na5 {[%clk 0:02:39]} 17. Rad1 {[%clk 0:02:15]}  Nc4 {[%clk 0:02:37]} 18. Bc1 {[%clk 0:02:14]}  Bc7 {[%clk 0:02:31]} 19. f4 {[%clk 0:02:10]}  Nd6 {[%clk 0:02:26]} 20. f5 {[%clk 0:02:09]}  exf5 {[%clk 0:02:11]} 21. Nxf5 {[%clk 0:02:07]}  Nfe4 {[%clk 0:02:12]} 22. Neg3 {[%clk 0:01:53]}  Nxg3 {[%clk 0:02:04]} 23. Nxg3 {[%clk 0:01:50]}  Qh4 {[%clk 0:02:03]} 24. Rf4 {[%clk 0:01:44]}  Qe7 {[%clk 0:02:02]} 25. Qf3 {[%clk 0:01:08]}  Ne4 {[%clk 0:01:50]} 26. Nf5 {[%clk 0:01:06]}  Qf6 {[%clk 0:01:33]} 27. Rg4 {[%clk 0:00:45]}  g6 {[%clk 0:01:13]} 28. Nxh6+ {[%clk 0:00:24]}  Kh7 {[%clk 0:01:10]} 29. Qxf6 {[%clk 0:00:16]}  Nxf6 {[%clk 0:01:09]} 30. Rh4 {[%clk 0:00:17]}  Kg7 {[%clk 0:01:04]} 31. Ng4 {[%clk 0:00:15]}  Nxg4 {[%clk 0:01:04]} 32. Rxg4 {[%clk 0:00:16]}  Rce8 {[%clk 0:01:03]} 33. Kf1 {[%clk 0:00:15]}  Bxh2 {[%clk 0:00:58]} 34. Rh4 {[%clk 0:00:12]}  Bg3 {[%clk 0:00:49]} 35. Bh6+ {[%clk 0:00:09]}  Kf6 {[%clk 0:00:45]} 36. Bxf8 {[%clk 0:00:04]}  Bxh4 {[%clk 0:00:44]} 37. Bd6 {[%clk 0:00:05]}  Kf5 {[%clk 0:00:39]} 38. g3 {[%clk 0:00:03]}  Bf6 {[%clk 0:00:35]} 39. Re1 {[%clk 0:00:03]}  Rxe1+ {[%clk 0:00:34]} 40. Kxe1 {[%clk 0:00:04]}  Ke4 {[%clk 0:00:34]} 41. Ke2 {[%clk 0:00:04]}  Bg5 {[%clk 0:00:33]} 42. b3 {[%clk 0:00:03]}  Bc1 {[%clk 0:00:32]} 43. Bc7 {[%clk 0:00:03]}  f5 {[%clk 0:00:28]} 44. Kd1 {[%clk 0:00:02]}  Be3 {[%clk 0:00:26]} 45. Be5 {[%clk 0:00:02]}  g5 {[%clk 0:00:26]} 46. c4 {[%clk 0:00:02]}  Bxd4 {[%clk 0:00:24]} 47. Bd6 {[%clk 0:00:01]}  dxc4 {[%clk 0:00:23]} 48. bxc4 {[%clk 0:00:02]}  Be5 {[%clk 0:00:23]} 49. Be7 {[%clk 0:00:01]}  g4 {[%clk 0:00:21]} 50. Bh4 {[%clk 0:00:01]}  Kf3 {[%clk 0:00:20]} 51. c5 {[%clk 0:00:01]}  Bxg3 {[%clk 0:00:20]} 52. Be7 {[%clk 0:00:02]}  Be5 {[%clk 0:00:20]} 0-1


[Site "https://www.chess.com"]

[Event "Titled Tuesday Blitz April 18 Early 2023"]
[White "Sadykov, Ramil"]
[Black "Galchenko, Matvey"]
[WhiteFideId "24113590"]
[BlackFideId "24175480"]
[WhiteElo "2245"]
[BlackElo "2423"]
[Result "0-1"]
[Round "08"]
[TimeControl "180+2"]
[Date "2023.04.18"]
[WhiteClock "0:00:01"]
[BlackClock "0:00:09"]

1. e4 {[%clk 0:02:59]}  e6 {[%clk 0:02:08]} 2. d4 {[%clk 0:02:57]}  d5 {[%clk 0:02:08]} 3. Nc3 {[%clk 0:02:56]}  Bb4 {[%clk 0:02:08]} 4. e5 {[%clk 0:02:56]}  Ne7 {[%clk 0:02:09]} 5. a3 {[%clk 0:02:55]}  Bxc3+ {[%clk 0:02:09]} 6. bxc3 {[%clk 0:02:56]}  c5 {[%clk 0:02:10]} 7. Qg4 {[%clk 0:02:56]}  cxd4 {[%clk 0:02:08]} 8. Qxg7 {[%clk 0:02:52]}  Rg8 {[%clk 0:02:08]} 9. Qxh7 {[%clk 0:02:53]}  Qc7 {[%clk 0:02:08]} 10. Ne2 {[%clk 0:02:53]}  Nbc6 {[%clk 0:02:08]} 11. f4 {[%clk 0:02:52]}  Bd7 {[%clk 0:02:08]} 12. h4 {[%clk 0:02:52]}  dxc3 {[%clk 0:02:05]} 13. h5 {[%clk 0:02:52]}  O-O-O {[%clk 0:02:05]} 14. Qd3 {[%clk 0:02:48]}  d4 {[%clk 0:02:04]} 15. Nxd4 {[%clk 0:02:37]}  Nxd4 {[%clk 0:01:36]} 16. Qxd4 {[%clk 0:02:38]}  Nf5 {[%clk 0:01:37]} 17. Qxa7 {[%clk 0:02:35]}  Qc6 {[%clk 0:01:36]} 18. Be3 {[%clk 0:01:29]}  Qa4 {[%clk 0:00:57]} 19. Bd3 {[%clk 0:01:01]}  Nxe3 {[%clk 0:00:31]} 20. Qxe3 {[%clk 0:00:59]}  Rxg2 {[%clk 0:00:31]} 21. Be4 {[%clk 0:00:50]}  Rg4 {[%clk 0:00:18]} 22. Qxc3+ {[%clk 0:00:37]}  Bc6 {[%clk 0:00:13]} 23. Bxc6 {[%clk 0:00:29]}  bxc6 {[%clk 0:00:14]} 24. Qf3 {[%clk 0:00:16]}  Rxf4 {[%clk 0:00:13]} 25. Kf2 {[%clk 0:00:02]}  Qxc2+ {[%clk 0:00:09]} 26. Kg3 {[%clk 0:00:02]}  Rxf3+ {[%clk 0:00:09]} 27. Kxf3 {[%clk 0:00:02]}  Qf5+ {[%clk 0:00:09]} 28. Kg2 {[%clk 0:00:01]}  Rd2+ {[%clk 0:00:08]} 29. Kg3 {[%clk 0:00:02]}  Rd3+ {[%clk 0:00:08]} 30. Kh4 {[%clk 0:00:01]}  Rd4+ {[%clk 0:00:08]} 31. Kg3 {[%clk 0:00:02]}  Rg4+ {[%clk 0:00:09]} 32. Kh2 {[%clk 0:00:01]}  Qxh5# {[%clk 0:00:09]} 0-1


[Site "https://www.chess.com"]

[Event "Titled Tuesday Blitz April 18 Early 2023"]
[White "Girya, Olga"]
[Black "chessfatbear"]
[WhiteFideId "4195752"]
[WhiteElo "2263"]
[BlackElo "2768"]
[Result "1-0"]
[Round "08"]
[TimeControl "180+2"]
[Date "2023.04.18"]
[WhiteClock "0:01:54"]
[BlackClock "0:00:56"]

1. d4 {[%clk 0:03:00]}  Nf6 {[%clk 0:02:55]} 2. Nf3 {[%clk 0:03:00]}  d5 {[%clk 0:02:54]} 3. c4 {[%clk 0:03:00]}  e6 {[%clk 0:02:55]} 4. Nc3 {[%clk 0:03:00]}  Be7 {[%clk 0:02:56]} 5. Bf4 {[%clk 0:02:58]}  O-O {[%clk 0:02:55]} 6. e3 {[%clk 0:02:58]}  b6 {[%clk 0:02:53]} 7. Bd3 {[%clk 0:02:53]}  dxc4 {[%clk 0:02:49]} 8. Bxc4 {[%clk 0:02:53]}  Bb7 {[%clk 0:02:50]} 9. O-O {[%clk 0:02:52]}  Nbd7 {[%clk 0:02:49]} 10. Qe2 {[%clk 0:02:51]}  a6 {[%clk 0:02:49]} 11. a4 {[%clk 0:02:47]}  c5 {[%clk 0:02:48]} 12. Rfd1 {[%clk 0:02:41]}  cxd4 {[%clk 0:02:41]} 13. exd4 {[%clk 0:02:23]}  Nd5 {[%clk 0:01:46]} 14. Nxd5 {[%clk 0:02:23]}  exd5 {[%clk 0:01:44]} 15. Bd3 {[%clk 0:02:22]}  Re8 {[%clk 0:01:44]} 16. Ne5 {[%clk 0:02:19]}  Bf6 {[%clk 0:01:38]} 17. Bxh7+ {[%clk 0:02:16]}  Kf8 {[%clk 0:01:04]} 18. Qh5 {[%clk 0:02:11]}  Nxe5 {[%clk 0:00:56]} 19. dxe5 {[%clk 0:02:09]}  g6 {[%clk 0:00:56]} 20. exf6 {[%clk 0:01:54]} 1-0


[Site "https://www.chess.com"]

[Event "Titled Tuesday Blitz April 18 Early 2023"]
[White "Ronka, Erik"]
[Black "Grigoriants, Sergey"]
[WhiteFideId "505080"]
[BlackFideId "4130804"]
[WhiteElo "2264"]
[BlackElo "2502"]
[Result "0-1"]
[Round "08"]
[TimeControl "180+2"]
[Date "2023.04.18"]
[WhiteClock "0:01:13"]
[BlackClock "0:02:22"]

1. e4 {[%clk 0:03:00]}  c5 {[%clk 0:02:56]} 2. Nf3 {[%clk 0:03:01]}  Nc6 {[%clk 0:02:57]} 3. d4 {[%clk 0:03:01]}  cxd4 {[%clk 0:02:57]} 4. Nxd4 {[%clk 0:03:02]}  e6 {[%clk 0:02:57]} 5. Nc3 {[%clk 0:03:02]}  a6 {[%clk 0:02:58]} 6. Nxc6 {[%clk 0:03:01]}  bxc6 {[%clk 0:02:58]} 7. Bd3 {[%clk 0:03:02]}  d5 {[%clk 0:02:58]} 8. O-O {[%clk 0:03:02]}  Nf6 {[%clk 0:02:59]} 9. e5 {[%clk 0:03:00]}  Nd7 {[%clk 0:02:58]} 10. Re1 {[%clk 0:03:00]}  Be7 {[%clk 0:02:50]} 11. Qg4 {[%clk 0:03:00]}  g6 {[%clk 0:02:51]} 12. Bh6 {[%clk 0:02:58]}  Rb8 {[%clk 0:02:51]} 13. Nd1 {[%clk 0:02:40]}  Rb4 {[%clk 0:02:47]} 14. c4 {[%clk 0:02:30]}  dxc4 {[%clk 0:02:34]} 15. Bd2 {[%clk 0:02:02]}  c3 {[%clk 0:02:22]} 16. Be3 {[%clk 0:01:13]} 0-1


[Site "https://www.chess.com"]

[Event "Titled Tuesday Blitz April 18 Early 2023"]
[White "Srihari L R"]
[Black "Moksh Amit Doshi"]
[WhiteFideId "46617116"]
[BlackFideId "25064967"]
[WhiteElo "2334"]
[BlackElo "2297"]
[Result "1-0"]
[Round "08"]
[TimeControl "180+2"]
[Date "2023.04.18"]
[WhiteClock "0:01:21"]
[BlackClock "0:01:00"]

1. d4 {[%clk 0:03:00]}  Nf6 {[%clk 0:02:59]} 2. Nf3 {[%clk 0:02:51]}  d5 {[%clk 0:02:59]} 3. e3 {[%clk 0:02:48]}  c5 {[%clk 0:02:54]} 4. b3 {[%clk 0:02:46]}  Nc6 {[%clk 0:02:53]} 5. Bb2 {[%clk 0:02:46]}  cxd4 {[%clk 0:02:53]} 6. exd4 {[%clk 0:02:46]}  Bg4 {[%clk 0:02:53]} 7. Be2 {[%clk 0:02:46]}  e6 {[%clk 0:02:54]} 8. O-O {[%clk 0:02:46]}  Bd6 {[%clk 0:02:53]} 9. Ne5 {[%clk 0:02:46]}  Bxe2 {[%clk 0:02:53]} 10. Qxe2 {[%clk 0:02:47]}  O-O {[%clk 0:02:53]} 11. Nd2 {[%clk 0:02:47]}  Rc8 {[%clk 0:02:53]} 12. a3 {[%clk 0:02:43]}  Qb6 {[%clk 0:02:38]} 13. Ndf3 {[%clk 0:02:40]}  Ne4 {[%clk 0:02:37]} 14. Nd7 {[%clk 0:02:40]}  Qc7 {[%clk 0:02:33]} 15. Nxf8 {[%clk 0:02:40]}  Rxf8 {[%clk 0:02:33]} 16. c4 {[%clk 0:02:40]}  Na5 {[%clk 0:02:30]} 17. c5 {[%clk 0:02:38]}  Be7 {[%clk 0:02:30]} 18. Qd3 {[%clk 0:02:27]}  b6 {[%clk 0:02:30]} 19. Rac1 {[%clk 0:02:24]}  Bf6 {[%clk 0:02:22]} 20. Qc2 {[%clk 0:02:16]}  Rb8 {[%clk 0:02:18]} 21. Ba1 {[%clk 0:02:04]}  bxc5 {[%clk 0:02:14]} 22. dxc5 {[%clk 0:02:04]}  Bxa1 {[%clk 0:02:14]} 23. Rxa1 {[%clk 0:02:03]}  Nxb3 {[%clk 0:02:15]} 24. Rab1 {[%clk 0:02:03]}  Nbxc5 {[%clk 0:02:14]} 25. Rxb8+ {[%clk 0:02:01]}  Qxb8 {[%clk 0:02:15]} 26. Rb1 {[%clk 0:02:01]}  Qd8 {[%clk 0:02:09]} 27. Qb2 {[%clk 0:01:59]}  Kf8 {[%clk 0:01:47]} 28. Nd4 {[%clk 0:01:52]}  a6 {[%clk 0:01:37]} 29. Nc6 {[%clk 0:01:35]}  Qe8 {[%clk 0:01:36]} 30. Qb8 {[%clk 0:01:34]}  g6 {[%clk 0:01:27]} 31. f3 {[%clk 0:01:29]}  Nc3 {[%clk 0:01:03]} 32. Qd6+ {[%clk 0:01:20]}  Kg7 {[%clk 0:01:02]} 33. Qe5+ {[%clk 0:01:21]}  f6 {[%clk 0:01:00]} 34. Qxc3 {[%clk 0:01:20]}  Qxc6 {[%clk 0:01:00]} 35. Rc1 {[%clk 0:01:21]} 1-0


[Site "https://www.chess.com"]

[Event "Titled Tuesday Blitz April 18 Early 2023"]
[White "benny_aizenberg"]
[Black "Aaditya Dhingra"]
[BlackFideId "25678191"]
[WhiteElo "2567"]
[BlackElo "2083"]
[Result "1-0"]
[Round "08"]
[TimeControl "180+2"]
[Date "2023.04.18"]
[WhiteClock "0:02:40"]
[BlackClock "0:02:32"]

1. f4 {[%clk 0:02:59]}  e5 {[%clk 0:02:57]} 2. fxe5 {[%clk 0:02:56]}  d6 {[%clk 0:02:57]} 3. Nf3 {[%clk 0:02:56]}  dxe5 {[%clk 0:02:57]} 4. e4 {[%clk 0:02:56]}  Bd6 {[%clk 0:02:53]} 5. Bc4 {[%clk 0:02:56]}  Ne7 {[%clk 0:02:51]} 6. O-O {[%clk 0:02:55]}  O-O {[%clk 0:02:48]} 7. Ng5 {[%clk 0:02:55]}  Bc5+ {[%clk 0:02:43]} 8. Kh1 {[%clk 0:02:54]}  Be6 {[%clk 0:02:33]} 9. Bxe6 {[%clk 0:02:40]}  fxe6 {[%clk 0:02:33]} 10. Nxe6 {[%clk 0:02:40]}  Rxf1+ {[%clk 0:02:32]} 11. Qxf1 {[%clk 0:02:40]} 1-0


[Site "https://www.chess.com"]

[Event "Titled Tuesday Blitz April 18 Early 2023"]
[White "Skvortsov, Andrei"]
[Black "Tomaszewski, Kacper"]
[WhiteFideId "24108600"]
[BlackFideId "1127373"]
[WhiteElo "2259"]
[BlackElo "2211"]
[Result "1-0"]
[Round "08"]
[TimeControl "180+2"]
[Date "2023.04.18"]
[WhiteClock "0:01:36"]
[BlackClock "0:00:43"]

1. g3 {[%clk 0:02:58]}  c6 {[%clk 0:02:58]} 2. Bg2 {[%clk 0:02:57]}  d5 {[%clk 0:02:59]} 3. Nf3 {[%clk 0:02:55]}  Nf6 {[%clk 0:02:58]} 4. O-O {[%clk 0:02:56]}  Nbd7 {[%clk 0:02:57]} 5. c4 {[%clk 0:02:56]}  e5 {[%clk 0:02:55]} 6. cxd5 {[%clk 0:02:55]}  cxd5 {[%clk 0:02:55]} 7. d4 {[%clk 0:02:54]}  e4 {[%clk 0:02:55]} 8. Ne5 {[%clk 0:02:54]}  Bd6 {[%clk 0:02:53]} 9. Nxd7 {[%clk 0:02:53]}  Bxd7 {[%clk 0:02:53]} 10. Nc3 {[%clk 0:02:53]}  O-O {[%clk 0:02:52]} 11. f3 {[%clk 0:02:53]}  exf3 {[%clk 0:02:50]} 12. Bxf3 {[%clk 0:02:53]}  Bc6 {[%clk 0:02:47]} 13. Bg5 {[%clk 0:02:53]}  Be7 {[%clk 0:02:42]} 14. Qb3 {[%clk 0:02:52]}  h6 {[%clk 0:02:41]} 15. Bxf6 {[%clk 0:02:51]}  Bxf6 {[%clk 0:02:42]} 16. e3 {[%clk 0:02:49]}  Re8 {[%clk 0:02:42]} 17. Rae1 {[%clk 0:02:41]}  Bg5 {[%clk 0:02:25]} 18. Nxd5 {[%clk 0:02:40]}  Qd6 {[%clk 0:02:01]} 19. Nf4 {[%clk 0:02:32]}  Rad8 {[%clk 0:01:52]} 20. d5 {[%clk 0:02:26]}  Bxf4 {[%clk 0:01:32]} 21. dxc6 {[%clk 0:02:25]}  Bxg3 {[%clk 0:01:29]} 22. hxg3 {[%clk 0:02:24]}  Qxg3+ {[%clk 0:01:29]} 23. Bg2 {[%clk 0:02:19]}  Rd2 {[%clk 0:01:24]} 24. Qxf7+ {[%clk 0:02:18]}  Kh7 {[%clk 0:01:24]} 25. Qf3 {[%clk 0:02:00]}  Qxf3 {[%clk 0:01:13]} 26. Bxf3 {[%clk 0:01:58]}  bxc6 {[%clk 0:01:13]} 27. Rf2 {[%clk 0:01:58]}  Rxf2 {[%clk 0:01:05]} 28. Kxf2 {[%clk 0:01:59]}  c5 {[%clk 0:01:02]} 29. Rc1 {[%clk 0:01:58]}  Re5 {[%clk 0:01:01]} 30. e4 {[%clk 0:01:53]}  h5 {[%clk 0:01:01]} 31. Rd1 {[%clk 0:01:50]}  g6 {[%clk 0:00:56]} 32. Rd5 {[%clk 0:01:49]}  Rxd5 {[%clk 0:00:56]} 33. exd5 {[%clk 0:01:50]}  Kg7 {[%clk 0:00:57]} 34. d6 {[%clk 0:01:43]}  Kf6 {[%clk 0:00:57]} 35. Bd5 {[%clk 0:01:42]}  a5 {[%clk 0:00:51]} 36. b3 {[%clk 0:01:41]}  g5 {[%clk 0:00:45]} 37. a4 {[%clk 0:01:36]}  g4 {[%clk 0:00:43]} 38. Kg3 {[%clk 0:01:36]} 1-0


[Site "https://www.chess.com"]

[Event "Titled Tuesday Blitz April 18 Early 2023"]
[White "Mendez Fortes, Eduardo Jesus"]
[Black "Cnejev, Vladimir-Alexandru"]
[WhiteFideId "3502376"]
[BlackFideId "1260898"]
[WhiteElo "2307"]
[BlackElo "2132"]
[Result "1-0"]
[Round "08"]
[TimeControl "180+2"]
[Date "2023.04.18"]
[WhiteClock "0:00:12"]
[BlackClock "0:00:01"]

1. e4 {[%clk 0:03:00]}  e5 {[%clk 0:02:57]} 2. Nf3 {[%clk 0:03:00]}  Nc6 {[%clk 0:02:56]} 3. Bb5 {[%clk 0:03:00]}  Nf6 {[%clk 0:02:55]} 4. d3 {[%clk 0:02:52]}  d6 {[%clk 0:02:54]} 5. O-O {[%clk 0:02:51]}  Be7 {[%clk 0:02:53]} 6. c3 {[%clk 0:02:49]}  a6 {[%clk 0:02:53]} 7. Ba4 {[%clk 0:02:49]}  b5 {[%clk 0:02:53]} 8. Bc2 {[%clk 0:02:48]}  O-O {[%clk 0:02:54]} 9. h3 {[%clk 0:02:48]}  Re8 {[%clk 0:02:53]} 10. Re1 {[%clk 0:02:48]}  Bb7 {[%clk 0:02:50]} 11. Nbd2 {[%clk 0:02:48]}  Bf8 {[%clk 0:02:49]} 12. Nf1 {[%clk 0:02:48]}  h6 {[%clk 0:02:45]} 13. Ng3 {[%clk 0:02:48]}  g6 {[%clk 0:02:38]} 14. a4 {[%clk 0:02:47]}  Bg7 {[%clk 0:02:36]} 15. Be3 {[%clk 0:02:46]}  d5 {[%clk 0:02:34]} 16. Qc1 {[%clk 0:02:44]}  Kh7 {[%clk 0:02:33]} 17. b4 {[%clk 0:02:25]}  d4 {[%clk 0:02:24]} 18. cxd4 {[%clk 0:02:25]}  exd4 {[%clk 0:02:25]} 19. Bd2 {[%clk 0:02:25]}  Bf8 {[%clk 0:01:48]} 20. Qb2 {[%clk 0:02:19]}  Qd6 {[%clk 0:01:41]} 21. axb5 {[%clk 0:02:14]}  axb5 {[%clk 0:01:42]} 22. Rxa8 {[%clk 0:02:14]}  Bxa8 {[%clk 0:01:42]} 23. Rb1 {[%clk 0:02:03]}  Bb7 {[%clk 0:01:34]} 24. Bb3 {[%clk 0:01:56]}  Re7 {[%clk 0:01:11]} 25. Ne2 {[%clk 0:01:50]}  Bg7 {[%clk 0:00:52]} 26. Ba2 {[%clk 0:01:37]}  Nd7 {[%clk 0:00:25]} 27. Bd5 {[%clk 0:01:30]}  Nd8 {[%clk 0:00:15]} 28. Bf4 {[%clk 0:01:20]}  Ne5 {[%clk 0:00:11]} 29. Bxb7 {[%clk 0:01:15]}  Nxb7 {[%clk 0:00:09]} 30. Bxe5 {[%clk 0:01:14]}  Bxe5 {[%clk 0:00:09]} 31. Rc1 {[%clk 0:01:14]}  c5 {[%clk 0:00:07]} 32. bxc5 {[%clk 0:01:14]}  Nxc5 {[%clk 0:00:08]} 33. Qxb5 {[%clk 0:01:12]}  Rc7 {[%clk 0:00:03]} 34. Nxe5 {[%clk 0:01:12]}  Qxe5 {[%clk 0:00:04]} 35. f4 {[%clk 0:01:10]}  Qd6 {[%clk 0:00:02]} 36. Qc4 {[%clk 0:01:08]}  Ne6 {[%clk 0:00:02]} 37. Qb3 {[%clk 0:00:51]}  Rxc1+ {[%clk 0:00:03]} 38. Nxc1 {[%clk 0:00:52]}  Qxf4 {[%clk 0:00:03]} 39. Qc2 {[%clk 0:00:47]}  Qe3+ {[%clk 0:00:04]} 40. Kf1 {[%clk 0:00:47]}  Nf4 {[%clk 0:00:05]} 41. Qc4 {[%clk 0:00:21]}  Qd2 {[%clk 0:00:03]} 42. Qxf7+ {[%clk 0:00:18]}  Kh8 {[%clk 0:00:03]} 43. Qe8+ {[%clk 0:00:19]}  Kg7 {[%clk 0:00:03]} 44. Qd7+ {[%clk 0:00:19]}  Kg8 {[%clk 0:00:03]} 45. Qd8+ {[%clk 0:00:19]}  Kh7 {[%clk 0:00:04]} 46. Qc7+ {[%clk 0:00:18]}  Kg8 {[%clk 0:00:04]} 47. Qc4+ {[%clk 0:00:17]}  Kh7 {[%clk 0:00:04]} 48. g3 {[%clk 0:00:13]}  Qg2+ {[%clk 0:00:03]} 49. Ke1 {[%clk 0:00:13]}  Qxg3+ {[%clk 0:00:03]} 50. Kd1 {[%clk 0:00:13]}  Qxh3 {[%clk 0:00:02]} 51. Qf7+ {[%clk 0:00:13]}  Kh8 {[%clk 0:00:03]} 52. Qxf4 {[%clk 0:00:13]}  Qh1+ {[%clk 0:00:02]} 53. Kc2 {[%clk 0:00:13]}  Qh5 {[%clk 0:00:01]} 54. Qf6+ {[%clk 0:00:13]}  Kh7 {[%clk 0:00:01]} 55. Qxd4 {[%clk 0:00:14]}  Qh3 {[%clk 0:00:01]} 56. Qa7+ {[%clk 0:00:12]}  Kg8 {[%clk 0:00:01]} 57. Ne2 {[%clk 0:00:12]} 1-0


[Site "https://www.chess.com"]

[Event "Titled Tuesday Blitz April 18 Early 2023"]
[White "Hua, Lefong"]
[Black "Camacho Collados, Jose"]
[WhiteFideId "2602253"]
[BlackFideId "2265427"]
[WhiteElo "2641"]
[BlackElo "2198"]
[Result "1/2-1/2"]
[Round "08"]
[TimeControl "180+2"]
[Date "2023.04.18"]
[WhiteClock "0:01:43"]
[BlackClock "0:00:17"]

1. d4 {[%clk 0:03:00]}  Nf6 {[%clk 0:02:58]} 2. c4 {[%clk 0:03:00]}  g6 {[%clk 0:02:59]} 3. Nc3 {[%clk 0:03:00]}  d5 {[%clk 0:02:59]} 4. cxd5 {[%clk 0:03:01]}  Nxd5 {[%clk 0:03:00]} 5. e4 {[%clk 0:03:02]}  Nxc3 {[%clk 0:03:00]} 6. bxc3 {[%clk 0:03:03]}  Bg7 {[%clk 0:03:00]} 7. Nf3 {[%clk 0:03:04]}  c5 {[%clk 0:03:00]} 8. Rb1 {[%clk 0:03:04]}  Nc6 {[%clk 0:03:00]} 9. d5 {[%clk 0:03:02]}  Bxc3+ {[%clk 0:03:00]} 10. Bd2 {[%clk 0:03:01]}  Bxd2+ {[%clk 0:02:58]} 11. Qxd2 {[%clk 0:03:02]}  Nd4 {[%clk 0:02:56]} 12. Nxd4 {[%clk 0:02:58]}  cxd4 {[%clk 0:02:57]} 13. Bb5+ {[%clk 0:02:57]}  Bd7 {[%clk 0:02:57]} 14. Bxd7+ {[%clk 0:02:56]}  Qxd7 {[%clk 0:02:57]} 15. Qxd4 {[%clk 0:02:56]}  O-O {[%clk 0:02:56]} 16. O-O {[%clk 0:02:56]}  b6 {[%clk 0:02:48]} 17. Rfd1 {[%clk 0:02:39]}  Rac8 {[%clk 0:02:48]} 18. h4 {[%clk 0:02:36]}  h5 {[%clk 0:02:43]} 19. Rbc1 {[%clk 0:02:31]}  Qg4 {[%clk 0:02:38]} 20. g3 {[%clk 0:02:25]}  Qf3 {[%clk 0:02:32]} 21. a4 {[%clk 0:02:11]}  Rc5 {[%clk 0:02:02]} 22. Rxc5 {[%clk 0:02:05]}  bxc5 {[%clk 0:02:02]} 23. Qd3 {[%clk 0:02:04]}  Qxd3 {[%clk 0:01:59]} 24. Rxd3 {[%clk 0:02:05]}  Rb8 {[%clk 0:01:59]} 25. Rc3 {[%clk 0:02:03]}  Rb4 {[%clk 0:01:59]} 26. f3 {[%clk 0:02:02]}  Rxa4 {[%clk 0:01:52]} 27. Rxc5 {[%clk 0:02:01]}  Ra2 {[%clk 0:01:52]} 28. Rc7 {[%clk 0:02:00]}  Kf8 {[%clk 0:01:48]} 29. Kf1 {[%clk 0:01:56]}  a5 {[%clk 0:01:48]} 30. Ra7 {[%clk 0:01:56]}  a4 {[%clk 0:01:49]} 31. f4 {[%clk 0:01:53]}  a3 {[%clk 0:01:40]} 32. e5 {[%clk 0:01:53]}  Ra1+ {[%clk 0:01:38]} 33. Kf2 {[%clk 0:01:53]}  a2 {[%clk 0:01:23]} 34. Kg2 {[%clk 0:01:52]}  Rd1 {[%clk 0:01:23]} 35. Ra8+ {[%clk 0:01:50]}  Kg7 {[%clk 0:01:22]} 36. Rxa2 {[%clk 0:01:50]}  Rxd5 {[%clk 0:01:22]} 37. Rb2 {[%clk 0:01:50]}  f6 {[%clk 0:01:20]} 38. exf6+ {[%clk 0:01:50]}  Kxf6 {[%clk 0:01:19]} 39. Rb6+ {[%clk 0:01:47]}  e6 {[%clk 0:01:19]} 40. Rb3 {[%clk 0:01:44]}  Kf5 {[%clk 0:01:00]} 41. Kf3 {[%clk 0:01:42]}  e5 {[%clk 0:00:57]} 42. fxe5 {[%clk 0:01:39]}  Rxe5 {[%clk 0:00:55]} 43. Rb6 {[%clk 0:01:38]}  Ra5 {[%clk 0:00:55]} 44. Rb3 {[%clk 0:01:37]}  Rc5 {[%clk 0:00:53]} 45. Ra3 {[%clk 0:01:37]}  Rb5 {[%clk 0:00:53]} 46. Rc3 {[%clk 0:01:37]}  Ke5 {[%clk 0:00:51]} 47. Rc6 {[%clk 0:01:36]}  Rb3+ {[%clk 0:00:50]} 48. Kg2 {[%clk 0:01:36]}  Kf5 {[%clk 0:00:48]} 49. Rc5+ {[%clk 0:01:37]}  Kf6 {[%clk 0:00:47]} 50. Rc6+ {[%clk 0:01:37]}  Kf5 {[%clk 0:00:48]} 51. Rc5+ {[%clk 0:01:37]}  Kf6 {[%clk 0:00:33]} 52. Ra5 {[%clk 0:01:37]}  Rc3 {[%clk 0:00:32]} 53. Ra6+ {[%clk 0:01:36]}  Kf5 {[%clk 0:00:32]} 54. Ra5+ {[%clk 0:01:37]}  Kf6 {[%clk 0:00:32]} 55. Rb5 {[%clk 0:01:37]}  Ra3 {[%clk 0:00:31]} 56. Rb6+ {[%clk 0:01:37]}  Kf5 {[%clk 0:00:32]} 57. Rb5+ {[%clk 0:01:38]}  Kf6 {[%clk 0:00:31]} 58. Kh2 {[%clk 0:01:38]}  Rc3 {[%clk 0:00:29]} 59. Rb6+ {[%clk 0:01:37]}  Kf5 {[%clk 0:00:29]} 60. Rb5+ {[%clk 0:01:38]}  Kf6 {[%clk 0:00:19]} 61. Kh3 {[%clk 0:01:39]}  Rc4 {[%clk 0:00:17]} 62. Rb6+ {[%clk 0:01:39]}  Kf5 {[%clk 0:00:17]} 63. Rb5+ {[%clk 0:01:40]}  Kf6 {[%clk 0:00:18]} 64. Ra5 {[%clk 0:01:40]}  Rb4 {[%clk 0:00:18]} 65. Rc5 {[%clk 0:01:40]}  Rb2 {[%clk 0:00:17]} 66. Rc6+ {[%clk 0:01:40]}  Kf5 {[%clk 0:00:17]} 67. Rc5+ {[%clk 0:01:41]}  Kf6 {[%clk 0:00:16]} 68. Rd5 {[%clk 0:01:42]}  Ke6 {[%clk 0:00:16]} 69. Ra5 {[%clk 0:01:41]}  Kf6 {[%clk 0:00:16]} 70. Ra6+ {[%clk 0:01:41]}  Kf5 {[%clk 0:00:16]} 71. Ra5+ {[%clk 0:01:42]}  Kf6 {[%clk 0:00:16]} 72. Ra6+ {[%clk 0:01:43]}  Kf5 {[%clk 0:00:17]} 73. Ra5+ {[%clk 0:01:43]}  Kf6 {[%clk 0:00:17]} 1/2-1/2


[Site "https://www.chess.com"]